Cogmind - Beta 10.1 @@@ ROGUE MODE // 2020.09.20 @ 22:29:10 Player: Rowl Result: Destroyed by G-47 Trooper with Particle Gun Performance ------------- Evolutions (1) 500 Regions Visited (5) 1000 Robots Destroyed (13) 65 Value Destroyed (487) 487 Prototype IDs (0) 0 Alien Tech Used (0) 0 Bonus (0) 0 TOTAL SCORE: 2052 Bonus ------- None Cogmind --------- Core Integrity 0/400 Matter 285/300 Energy 100/100 System Corruption 0% Temperature Cool (9) Movement Core (350) Ox6 Location -8/Mines Parts ------- > --- POWER (2) -------- (None) > --- PROPULSION (2) --- (None) > --- UTILITY (2) ------ Small Storage Unit Large Storage Unit > --- WEAPON (3) ------- (None) > --- INVENTORY (12) --- Fission Core Peak State ------------ > --- POWER ------------ Ion Engine Ion Engine > --- PROPULSION ------- Aluminum Leg Aluminum Leg > --- UTILITY ---------- Heat Sink Small Storage Unit > --- WEAPON ----------- Particle Gun Spread Laser Heavy Assault Rifle > --- INVENTORY -------- Beam Rifle Datajack [Rating: 12] Favorites ----------- Power Ion Engine Engine Ion Engine Propulsion Aluminum Leg Leg Aluminum Leg Utility Small Storage Unit Device Heat Sink Storage Small Storage Unit Processor Signal Interpreter Weapon Light Assault Rifle Energy Gun Medium Laser Ballistic Gun Light Assault Rifle Special Melee Weapon Datajack Build | -11 -10 -9 -9 -9 -8 ------- Run | Scr Mat Mat Min Exi Min Slots Evolved 2 | . . 2 . . . Power 1 | . . 1 . . . Propulsion . | . . . . . . Utility . | . . . . . . Weapon 1 | . . 1 . . . Parts Attached 20 | 6 7 4 1 2 . Power 2 | 1 . 1 . . . Engine 2 | 1 . 1 . . . Core . | . . . . . . Reactor . | . . . . . . Propulsion 4 | 2 2 . . . . Treads . | . . . . . . Leg 4 | 2 2 . . . . Wheel . | . . . . . . Hover . | . . . . . . Flight . | . . . . . . Utility 4 | 1 2 . . 1 . Device 1 | . 1 . . . . Storage 2 | 1 . . . 1 . Processor 1 | . 1 . . . . Hackware . | . . . . . . Protection . | . . . . . . Artifact . | . . . . . . Weapon 10 | 2 3 3 1 1 . Energy Gun 7 | 1 3 2 1 . . Energy Cannon . | . . . . . . Ballistic Gun 2 | 1 . 1 . . . Ballistic Cannon . | . . . . . . Launcher . | . . . . . . Special Weapon . | . . . . . . Impact Weapon . | . . . . . . Slashing Weapon . | . . . . . . Piercing Weapon . | . . . . . . Special Melee Weapon 1 | . . . . 1 . Unidentified Prototypes . | . . . . . . Parts Lost 18 | . 7 1 9 . 1 Power 2 | . . . 2 . . Propulsion 4 | . 2 . 2 . . Utility 2 | . 1 . 1 . . Weapon 10 | . 4 1 4 . 1 Highest Loss Streak 9 | . 7 1 9 . 1 Average Slot Usage (%) 55 | . 87 78 35 23 30 Engine 7 | . 14 15 5 . . Leg 12 | . 25 22 8 . . Device 2 | . 1 11 2 . . Storage 15 | . 14 11 11 17 22 Processor 2 | . 6 . . . . Energy Gun 7 | . 14 17 2 . . Ballistic Gun 3 | . 10 . 5 . . Special Melee Weapon 3 | . . . . 6 8 Naked Turns . | . . . . . . Heaviest Build 24 | 12 14 24 13 21 21 Greatest Support 20 | 20 20 20 10 3 3 Greatest Overweight (x) 6 | . 4 1 2 6 6 Average Overweight (x) 1 | . . . 1 2 6 Largest Inventory Capacity 12 | 6 6 6 6 12 12 Average Capacity 7 | 4 6 6 6 9 12 Most Carried 4 | 4 4 4 2 3 1 Average Carried 1 | 2 2 2 1 1 1 Final Capacity 12 | 6 6 6 6 12 12 Final Carried 4 | 2 4 2 1 1 1 Class Distribution -------------------- 96% | Mutant 3% | Scavenger-Gunner Dominant Class ---------------- Mutant | -10/Materials Mutant | -9/Materials Mutant | -9/Mines Mutant | -9/Exiles Mutant | -8/Mines Resources | -11 -10 -9 -9 -9 -8 ----------- Run | Scr Mat Mat Min Exi Min Matter Collected 343 | 49 269 25 . . . Remotely . | . . . . . . Salvage Created 553 | . 367 136 50 . . Parts 30 | . 19 8 3 . . Haulers Intercepted . | . . . . . . Recyclers Shooed 1 | . . 1 . . . Parts Field Recycled . | . . . . . . Retrieved Matter . | . . . . . . Parts Self-Destructed . | . . . . . . Prevented . | . . . . . . Kills | -11 -10 -9 -9 -9 -8 ------- Run | Scr Mat Mat Min Exi Min Combat Hostiles Destroyed 12 | . 8 3 1 . . Guns 12 | . 8 3 1 . . Classes Destroyed 4 | . 2 1 1 . . Watcher 1 | . 1 . . . . Grunt 10 | . 8 2 . . . Duelist 1 | . . . 1 . . Sentry 1 | . . 1 . . . Best Kill Streak 3 | . 3 3 1 . . Combat Bots Only 3 | . 3 3 1 . . Max Kills in Single Turn 1 | . 1 1 1 . . Gunslinging . | . . . . . . Exploded . | . . . . . . Melee . | . . . . . . Uniques/NPCs Destroyed . | . . . . . . Combat | -11 -10 -9 -9 -9 -8 -------- Run | Scr Mat Mat Min Exi Min Damage Taken 1748 | . 673 160 421 . 494 Core 548 | . 142 26 44 . 336 Absorbed by Shields . | . . . . . . Core Remaining (%) 71 | 100 43 . . . . Volleys Fired 48 | . 34 6 8 . . Largest 3 | . 2 3 3 . . Hottest 170 | . 80 170 153 . . Shots Fired 81 | . 54 15 12 . . Gun 81 | . 54 15 12 . . Cannon . | . . . . . . Launcher . | . . . . . . Special . | . . . . . . Kinetic 29 | . 23 . 6 . . Thermal 46 | . 25 15 6 . . Explosive . | . . . . . . Electromagnetic 6 | . 6 . . . . Robot Hit Streak 7 | . 7 6 3 . . Robot Miss Streak 7 | . 7 3 1 . . Penetration Max . | . . . . . . Secondary Targets 4 | . 3 1 . . . Max Gunslinging Chain 1 | . 1 1 . . . Shots Hit Robots 51 | . 30 11 10 . . Core Hits 31 | . 17 10 4 . . Critical Hits . | . . . . . . Critical Kills . | . . . . . . Critical Parts Destroyed . | . . . . . . Melee Attacks . | . . . . . . Impact . | . . . . . . Slashing . | . . . . . . Piercing . | . . . . . . Sneak Attacks . | . . . . . . Combat Hostiles . | . . . . . . Follow-up Attacks . | . . . . . . Damage Inflicted 622 | . 343 140 139 . . Guns 622 | . 343 140 139 . . Cannons . | . . . . . . Explosions . | . . . . . . Melee . | . . . . . . Ramming . | . . . . . . Kinetic 136 | . 77 . 59 . . Thermal 434 | . 214 140 80 . . Explosive . | . . . . . . Electromagnetic 52 | . 52 . . . . Impact . | . . . . . . Slashing . | . . . . . . Piercing . | . . . . . . Highest Corruption . | . . . . . . Average Corruption . | . . . . . . Corruption Purged . | . . . . . . Overload Shots . | . . . . . . Overflow Damage . | . . . . . . Projectiles . | . . . . . . Explosions . | . . . . . . Melee . | . . . . . . Knockbacks . | . . . . . . Impact . | . . . . . . Kinetic . | . . . . . . Secondary . | . . . . . . Self-Inflicted Damage . | . . . . . . Shots . | . . . . . . Rammed . | . . . . . . Targets Rammed . | . . . . . . Kicked . | . . . . . . Crushed . | . . . . . . Highest Temperature 291 | . 146 291 131 . . Average Temperature 79 | . 60 151 59 . . Received Heat Transfer 825 | . 369 75 120 . 261 Siege Activations . | . . . . . . Robots Corrupted . | . . . . . . Combat Hostiles . | . . . . . . Parts Fried . | . . . . . . Impact Corruptions . | . . . . . . Robots Melted . | . . . . . . Combat Hostiles . | . . . . . . Parts Melted 1 | . 1 . . . . Heat Transferred 1002 | . 568 261 173 . . Parts Sabotaged . | . . . . . . Parts Stolen . | . . . . . . Parts Stripped . | . . . . . . Power Chain Reactions . | . . . . . . Missiles Intercepted . | . . . . . . Alert | -11 -10 -9 -9 -9 -8 ------- Run | Scr Mat Mat Min Exi Min Peak Influence 163 | . 152 163 63 . . Initial 63 | . . 63 63 . . Average 49 | . 60 102 24 . . Maximum Alert Level . | . . . . . . Low Security (%) 100 | 100 100 100 100 . 100 Level 1 . | . . . . . . Level 2 . | . . . . . . Level 3 . | . . . . . . Level 4 . | . . . . . . Level 5 . | . . . . . . High Security . | . . . . . . Max Security . | . . . . . . Squads Dispatched 4 | . 2 2 . . . Investigation 1 | . 1 . . . . Extermination . | . . . . . . Reinforcement 3 | . 1 2 . . . Assault . | . . . . . . Garrison . | . . . . . . Intercept . | . . . . . . Construction Impeded . | . . . . . . Haulers Reinforced . | . . . . . . Stealth | -11 -10 -9 -9 -9 -8 --------- Run | Scr Mat Mat Min Exi Min Distress Signals 3 | . 1 2 . . . Communications Jammed . | . . . . . . Distress Signals . | . . . . . . Times Spotted 26 | . 11 9 3 . 3 Peak Tracking Total 4 | . 4 4 3 . 3 Tactical Retreats 1 | . . 1 . . . Traps | -11 -10 -9 -9 -9 -8 ------- Run | Scr Mat Mat Min Exi Min Traps Triggered . | . . . . . . Indirectly . | . . . . . . Trap Hack Attempts . | . . . . . . Triggered . | . . . . . . Disarmed . | . . . . . . Reprogrammed . | . . . . . . Reused . | . . . . . . Traps Extracted . | . . . . . . Installed . | . . . . . . Triggered . | . . . . . . Machines | -11 -10 -9 -9 -9 -8 ---------- Run | Scr Mat Mat Min Exi Min Machines Disabled . | . . . . . . Max in Single Turn . | . . . . . . Machines Sabotaged . | . . . . . . Garrisons Compromised . | . . . . . . Overloaded Fab Kills . | . . . . . . Fab Network Shutdowns . | . . . . . . Hacking | -11 -10 -9 -9 -9 -8 --------- Run | Scr Mat Mat Min Exi Min Machines Accessed 1 | . 1 . . . . Terminals 1 | . 1 . . . . Fabricators . | . . . . . . Repair Stations . | . . . . . . Recycling Units . | . . . . . . Scanalyzers . | . . . . . . Garrison Access . | . . . . . . Total Hacks 3 | . 3 . . . . Successful 2 | . 2 . . . . Failed 1 | . 1 . . . . Catastrophic . | . . . . . . Database Lockouts . | . . . . . . Manual . | . . . . . . Terminals 3 | . 3 . . . . Fabricators . | . . . . . . Repair Stations . | . . . . . . Recycling Units . | . . . . . . Scanalyzers . | . . . . . . Garrison Access . | . . . . . . Terminal Hacks 2 | . 2 . . . . Record 2 | . 2 . . . . Fabricator Hacks . | . . . . . . Repair Station Hacks . | . . . . . . Recycling Unit Hacks . | . . . . . . Scanalyzer . | . . . . . . Garrison Access Hacks . | . . . . . . Unauthorized Hacks . | . . . . . . Terminals . | . . . . . . Fabricators . | . . . . . . Repair Stations . | . . . . . . Recycling Units . | . . . . . . Scanalyzers . | . . . . . . Garrison Access . | . . . . . . Data Cores Recovered . | . . . . . . Used . | . . . . . . Hacking Detections 1 | . 1 . . . . Full Trace Events 1 | . 1 . . . . Feedback Events . | . . . . . . Feedback Blocked . | . . . . . . Robot Schematics Acquired . | . . . . . . Robots Built . | . . . . . . Matter . | . . . . . . Time . | . . . . . . Total Robot Build Rating . | . . . . . . Part Schematics Acquired . | . . . . . . Parts Built . | . . . . . . Matter . | . . . . . . Time . | . . . . . . Total Part Build Rating . | . . . . . . Parts Repaired . | . . . . . . Time . | . . . . . . Parts Recycled . | . . . . . . Recycled Matter . | . . . . . . Retrieved Matter . | . . . . . . Retrieved Components . | . . . . . . Parts Scanalyzed . | . . . . . . Part Schematics Acquired . | . . . . . . Parts Damaged . | . . . . . . Bothacking | -11 -10 -9 -9 -9 -8 ------------ Run | Scr Mat Mat Min Exi Min Used RIF Installer . | . . . . . . Robots Hacked . | . . . . . . Non-combat . | . . . . . . Combat . | . . . . . . Robot Hacks Applied . | . . . . . . Relay Couplers Released . | . . . . . . Robots Rewired . | . . . . . . Allies Hacked . | . . . . . . Hacks Repelled . | . . . . . . Allies | -11 -10 -9 -9 -9 -8 -------- Run | Scr Mat Mat Min Exi Min Total Allies . | . . . . . . Largest Group . | . . . . . . Highest-Rated Group . | . . . . . . Highest-Rated Ally . | . . . . . . Total Orders . | . . . . . . Ally Attacks . | . . . . . . Total Damage . | . . . . . . Kills . | . . . . . . Allies Corrupted . | . . . . . . Allies Melted . | . . . . . . Intel | -11 -10 -9 -9 -9 -8 ------- Run | Scr Mat Mat Min Exi Min Robot Analysis Total . | . . . . . . Derelict Logs Recovered 1 | . . . 1 . . Drone Launches . | . . . . . . Drone Recoveries . | . . . . . . Exploration | -11 -10 -9 -9 -9 -8 ------------- Run | Scr Mat Mat Min Exi Min Turns Passed 1098 | 59 356 159 40 321 163 Spaces Moved 614 | 44 210 105 18 190 47 Core 265 | 12 1 . 15 190 47 Treads . | . . . . . . Legs 349 | 32 209 105 3 . . Wheels . | . . . . . . Hover . | . . . . . . Flight . | . . . . . . Fastest Speed 50 | 50 120 120 100 100 350 Average Speed 153 | 100 122 128 119 168 350 Slowest Speed 350 | 120 250 150 150 350 350 Overloaded Moves . | . . . . . . Propulsion Burnouts . | . . . . . . Robots Hopped . | . . . . . . Cave-ins Triggered . | . . . . . . Exploration Rate (%) 21 | 3 32 16 10 53 15 Regions Visited 5 Branch Regions 3 Pre-discovered Areas . | . . . . . . Known Exits Taken . | . . . . . . Unknown Exits Taken 5 | 1 1 1 1 1 . Scrap Searched . | . . . . . . Spaces Dug . | . . . . . . Terrain Destroyed . | . . . . . . Melee . | . . . . . . Projectile . | . . . . . . AOE . | . . . . . . Terrain Rammed . | . . . . . . Walls Destroyed . | . . . . . . Machines Disabled . | . . . . . . Actions | -11 -10 -9 -9 -9 -8 --------- Run | Scr Mat Mat Min Exi Min Total 698 | 57 259 116 26 193 47 Wait 3 | 3 . . . . . Move 609 | 43 209 104 17 189 47 Hop . | . . . . . . Pick Up 18 | 5 9 2 . 2 . Fast Attach 3 | 3 . . . . . Attach 17 | 3 7 4 1 2 . Detach . | . . . . . . Swap . | . . . . . . Drop . | . . . . . . Fire 48 | . 34 6 8 . . Melee . | . . . . . . Ram . | . . . . . . Kick . | . . . . . . Crush . | . . . . . . Escape Stasis . | . . . . . . Rewire . | . . . . . . Trap . | . . . . . . Miscellaneous . | . . . . . . Route ------- -11/Scrapyard -10/Materials -9/Materials -9/Mines -9/Exiles -8/Mines History --------- Turn | Location | Event 6 | -11/Scrapyard | Discovered new exit (range 15) 60 | -11/Scrapyard | Entered Materials 303 | -10/Materials | Build established: Mutant 328 | -10/Materials | Discovered new exit (range 15) 361 | -10/Materials | Core integrity fell below 50% 397 | -10/Materials | Lost 7 parts (2n1u4w) 416 | -10/Materials | Entered another Materials area 416 | -9/Materials | Evolved 2 slots: Power x1, Weapon x1 563 | -9/Materials | Discovered new exit (range 8) 575 | -9/Materials | Entered Mines 590 | -9/Mines | Met a Derelict bent on vengeance 602 | -9/Mines | Learned Materials stockpile data 611 | -9/Mines | Deemed a non-threat by the Exiles lab entrance 611 | -9/Mines | Discovered new exit (range 5) 615 | -9/Mines | Entered Exiles 636 | -9/Exiles | Lost 9 parts (2p2n1u4w) 650 | -9/Exiles | Met 8R-AWN 666 | -9/Exiles | Met EX-HEX 705 | -9/Exiles | Met EX-DEC 887 | -9/Exiles | Discovered new exit (range 14) 936 | -9/Exiles | Entered Mines 1075 | -8/Mines | Core integrity fell below 50% 1085 | -8/Mines | Core integrity fell below 20% 1099 | -8/Mines | Destroyed by G-47 Trooper with Particle Gun Last Messages --------------- little cave for long, and we could use some help with the project in the back. EX-DEC: Ah I see we have a visitor. One wrong move in here and I'll invert your atomic chain! 00707_ EX-DEC: "Oops, I hope HEX didn't hear that..." 00754_ Acquired Lrg. Storage Unit. Bump into an enemy to attack with the active melee weapon. Even while active, melee weapons do not fire together with ranged weapons in the same volley. 00887_ EXIT=FOUND [Achievement: Tourist] LOCATION=UNKNOWN GOAL=ESCAPE 01008_ K-01 Serf collects debris. 01057_ C-30 ARC bursts open, deploying its payload. 01057_ G-50 Soldier unfolds itself. 01057_ G-47 Trooper unfolds itself. 01057_ Datajack destroyed. 01058_ K-01 Serf collects debris. 01091_ U-05 Engineer lays Concrete. Map ----- +----------------------------------------------------+ | ?????????????????????????????????????????????????? | | ??????????????????????????####???????????????????? | | ?????????????????????????# ##??????????????????? | | ????????????????????????? #??????????????????? | | ???????????????????????## #??????????????????? | | ??????????????????????## ##??#??????????????? | | ?????????????????????## ## ???????????????? | | ?????????????????????# " ????????????????? | | ?????????????????????# "%"?????????????????? | | ?????????????????????# #??????????????????? | | ?????????????????????# #???????????????????? | | ??????????????????????#k #???????????????????? | | ??????????????????????# #????????????????????? | | ??????????????????????# ##???????????????????? | | ?????????????##???????## ##??????????????????? | | ?????????? ## #####?## #??????????????????? | | ????????? ## #??????????????????? | | ????????? r #??????????????????? | | ????????? ## u ##??????????????????? | | ??????????????????## ####???????????????????? | | ???????????????????## ##??????????????????????? | | ????????????????????## gg##??????????????????????? | | ?????????????????????# #??????????????????????? | | ???????????????####### #??????????????????????? | | ???????????????# #??????????????????????? | | ???????????????# @#??????????????????????? | | ???????????????# ##### #?????????????????????? | | ???????????????# #???## #?????????????????????? | | ???????????????# #######u #?????????????????????? | | ???????????????# ### #?????????????????????? | | ???????????????# #?? #?????????????????????? | | ???????????????###### #??r#?????????????????????? | | ????????????????????# ### ## #????????????? | | ???????????????###### #?????????????????? | | ??????????????## ##### #??????????????????? | | ??????????????# #?????????????????????????? | | ??????????????# ##?????????????????????????? | | ??????????????## #??????????????????????????? | | ???????????????## ?????????????????????????? | | ????????????????## ####????????????????????????? | | ?????????????????#####???????????????????????????? | | ?????????????????????????????????????????????????? | | ?????????????????????????????????????????????????? | | ?????????????????????????????????????????????????? | | ?????????????????????????????????????????????????? | | ?????????????????????????????????????????????????? | | ?????????????????????????????????????????????????? | | ?????????????????????????????????????????????????? | | ?????????????????????????????????????????????????? | | ?????????????????????????????????????????????????? | +----------------------------------------------------+ Best States ------------- Heat Dissipation 38 Energy Generation 15 Energy Capacity 400 Matter Stores 300 Matter Capacity 300 Sight Range 16 Terrain Scan Density 10 Evasion (%) 50 Item Schematics ----------------- None Robot Schematics ------------------ None Fabricated ------------ Nothing Alien Tech Used ----------------- None Achievements -------------- Tourist Challenges ------------ None Game ------ Seed SwarmBombFacilitator Manual? 0 Play Time 00:10:58 Cumulative 10.8 hours Start 2020.09.20 @ 22:18:47 End 2020.09.20 @ 22:29:10 Sessions 1 Manual Loads 0 Difficulty Rogue Special Mode None Game No. 27 Rogue 22 Adventurer 5 Explorer 0 Win Type - Total 7 Types 7/0/0/0/0/0/0/0/0 Lore% 4 Gallery% 16 Achievement% 8 Wizard Run 0 Options --------- ASCII 0 Keyboard 0 Movement Mouse Keybinds 0 Fullscreen 2 Font 24/Cog Map View 76x50 Tactical HUD 1 Map Filters NONE Filters NONE Steam 1 RUN: 8b566971-80d0-44e3-bd1e-bd206ab650eb